bitfinex-derivatives/quotes_SOLF0:USTF0_20250625
["timestamp","ask_amount","ask_price","bid_price","bid_amount"]
[1750815291968,34.98,145.46,145.37,34.98]
[1750815292669,34.98,145.49,145.37,34.98]
[1750815293173,41.85,145.49,145.46,6.8709]
[1750815294566,34.98,145.49,145.47,6.8707]
[1750815295177,34.98,145.49,145.46,6.871]
[1750815295379,41.8499,145.49,145.46,6.871]
[1750815296077,41.8499,145.49,145.47,6.8707]
[1750815296264,6.8699,145.49,145.44,2.3598]
[1750815296866,191.80530603,145.51,145.44,2.3598]
[1750815297271,191.80530603,145.51,145.47,6.8706]
[1750815297470,191.80530603,145.51,145.44,2.3598]
[1750815297775,34.96,145.52,145.44,7.0458]
[1750815297975,6.8688,145.51,145.48,6.8699]
[1750815298370,6.8688,145.51,145.49,6.8697]
[1750815298772,6.8694,145.5,145.44,7.0458]
[1750815299081,34.96,145.52,145.44,7.0458]
[1750815299280,34.96,145.52,145.47,6.8706]
[1750815299480,6.8696,145.5,145.47,6.8706]
[1750815300678,34.96,145.52,145.35,75.752]
[1750815300877,168.98,145.52,145.36,41.7751]
[1750815301177,6.8708,145.47,145.44,6.8718]
[1750815301380,168.98,145.52,145.42,34.96]
[1750815302379,168.98,145.52,145.36,6.8151]
[1750815302569,168.98,145.52,145.37,35.0]
[1750815302974,6.8709,145.47,145.43,6.8722]
[1750815303777,6.8712,145.46,145.43,6.8722]
[1750815304175,35.0,145.48,145.37,35.0]
[1750815304374,35.0,145.51,145.38,13.7499]
[1750815304784,6.8703,145.48,145.45,6.8712]
[1750815304981,6.8703,145.48,145.42,35.0]
[1750815305177,35.0,145.51,145.42,35.0]
[1750815305374,6.8699,145.49,145.46,6.8709]
[1750815305580,35.0,145.51,145.42,35.0]
[1750815305781,6.872,145.45,145.42,6.873]
[1750815305980,34.98,145.46,145.39,34.98]
[1750815306381,41.8515,145.46,145.42,6.8726]
[1750815306581,34.98,145.46,145.42,6.8726]
[1750815307092,6.8717,145.45,145.42,6.8726]
[1750815307285,34.98,145.46,145.43,6.8723]
[1750815307781,41.8514,145.46,145.43,6.8723]
[1750815308092,34.98,145.46,145.39,34.98]
[1750815308288,6.8719,145.45,145.39,34.98]
[1750815308489,6.8719,145.45,145.42,6.8727]
[1750815308886,6.8719,145.45,145.39,34.98]
[1750815309689,6.8719,145.45,145.42,6.8727]
[1750815310193,6.8721,145.44,145.42,6.8727]
[1750815310990,34.98,145.46,145.43,6.8724]
[1750815311593,41.8516,145.46,145.43,6.8724]
[1750815312291,6.8717,145.45,145.43,6.8724]
[1750815313489,34.98,145.46,145.39,34.98]
[1750815314193,34.98,145.46,145.44,6.8719]
[1750815314399,35.0,145.49,145.39,34.98]
[1750815314790,6.8703,145.48,145.46,6.8709]
[1750815314990,35.0,145.49,145.39,34.98]
[1750815315383,35.0,145.49,145.44,6.8718]
[1750815316799,6.8715,145.46,145.43,6.8724]
[1750815319094,35.0,145.49,145.41,6.8731]
[1750815319295,4.6741,145.48,145.38,35.0]
[1750815320493,6.8717,145.45,145.42,6.8728]
[1750815320699,4.6741,145.48,145.38,35.0]
[1750815321294,6.8704,145.48,145.46,6.871]
[1750815321498,35.0,145.49,145.46,6.871]
[1750815321899,41.8701,145.49,145.46,6.871]
[1750815322695,6.8702,145.48,145.45,6.8714]
[1750815323308,6.8707,145.47,145.44,6.8719]
[1750815324703,35.0,145.49,145.38,35.0]
[1750815324906,39.32301554,145.49,145.38,35.0]
[1750815325099,2.2468,145.48,145.38,35.0]
[1750815325301,6.8721,145.44,145.41,6.8733]
[1750815326610,2.2468,145.48,145.38,43.57936368]
[1750815327104,6.8716,145.46,145.43,6.8725]
[1750815327802,35.0,145.49,145.39,8.57936368]
[1750815328003,4.34090101,145.48,145.4,8.57936368]
[1750815328210,6.8709,145.47,145.44,6.8718]
[1750815328403,4.34081506,145.48,145.4,8.57936368]
[1750815328604,35.0,145.49,145.41,11.00486368]
[1750815328806,35.0,145.49,145.42,48.23336368]
[1750815329006,41.87,145.49,145.47,6.8706]
[1750815330304,35.0,145.49,145.47,6.8706]
[1750815331208,41.8699,145.49,145.47,6.8706]
[1750815332804,35.0,145.49,145.45,8.57936368]
[1750815333205,34.94,145.52,145.45,8.57936368]
[1750815333405,11.23642123,145.51,145.45,8.57936368]
[1750815333708,4.36850785,145.5,145.46,8.57936368]
[1750815333910,41.8084,145.52,145.5,6.869]
[1750815334111,34.94,145.52,145.47,8.57936368]
[1750815334611,34.94,145.52,145.48,8.57936368]
[1750815335406,41.8084,145.52,145.5,6.8691]
[1750815335611,34.94,145.52,145.5,6.8691]
[1750815337111,34.94,145.55,145.48,8.57936368]
[1750815337308,34.94,145.55,145.49,8.57936368]
[1750815338311,41.8071,145.55,145.49,8.57936368]
[1750815339510,34.94,145.55,145.5,8.57936368]
[1750815340220,11.15972595,145.57,145.5,8.57936368]
[1750815340409,4.29352595,145.57,145.51,8.57936368]
[1750815340606,6.8663,145.57,145.54,6.8671]
[1750815340913,34.94,145.58,145.54,6.8671]
[1750815341213,34.94,145.58,145.51,8.57936368]
[1750815341413,34.94,145.58,145.5,43.51936368]
[1750815342208,6.8661,145.57,145.55,6.8667]
[1750815343108,41.8057,145.58,145.56,6.8663]
[1750815343814,34.94,145.58,145.51,8.57936368]
[1750815344106,34.94,145.58,145.52,8.57936368]
[1750815344304,34.94,145.58,145.51,8.57936368]
[1750815344510,34.94,145.58,145.56,6.866]
[1750815344815,34.94,145.58,145.52,8.57936368]
[1750815345005,6.8667,145.56,145.52,8.57936368]
[1750815345206,6.8667,145.56,145.51,8.57936368]
[1750815345814,6.8667,145.56,145.53,6.8675]
[1750815346315,6.867,145.55,145.53,6.8675]
[1750815347706,6.8666,145.56,145.54,6.8673]
[1750815349127,6.8666,145.56,145.5,43.51936368]
[1750815349318,6.8666,145.56,145.53,6.8676]
[1750815351622,6.8669,145.55,145.53,6.8676]
[1750815352518,6.8667,145.56,145.53,6.8676]
[1750815353121,34.94,145.58,145.49,8.57936368]
[1750815353321,34.94,145.58,145.48,13.08846368]
[1750815353515,2.2579,145.57,145.48,13.08846368]
[1750815354412,2.2256,145.56,145.48,4.5091]
[1750815354714,2.2256,145.56,145.49,6.8695]
[1750815354912,2.2256,145.56,145.47,34.92]
[1750815355115,4.5451,145.56,145.47,34.92]
[1750815355316,6.869,145.51,145.48,6.87]
[1750815355510,34.92,145.53,145.45,8.57936368]
[1750815355716,6.87,145.49,145.46,6.8709]
[1750815356324,6.87,145.49,145.47,6.8706]
[1750815356524,34.92,145.53,145.44,50.28186368]
[1750815357226,6.8696,145.5,145.47,6.8704]
[1750815357425,34.92,145.53,145.44,50.28186368]
[1750815357814,34.92,145.53,145.45,6.8714]
[1750815358529,6.87,145.49,145.46,6.8711]
[1750815360025,6.87,145.49,145.47,6.8707]
[1750815360225,34.92,145.53,145.44,41.7025]
[1750815360625,34.92,145.53,145.49,6.8697]
[1750815360830,34.92,145.53,145.45,8.57936368]
[1750815361529,41.7881,145.53,145.5,6.8689]
[1750815362629,6.8684,145.52,145.49,6.8695]
[1750815364545,6.8688,145.51,145.48,6.87]
[1750815364836,34.92,145.53,145.45,8.57936368]
[1750815365043,6.8685,145.52,145.49,6.8694]
[1750815366242,41.7881,145.53,145.5,6.8692]
[1750815369046,6.8684,145.52,145.5,6.8692]
[1750815369447,6.8684,145.52,145.49,6.8696]
[1750815369644,34.92,145.53,145.46,8.57936368]
[1750815369948,34.92,145.53,145.47,8.57936368]
[1750815370445,34.92,145.53,145.52,6.8683]
[1750815373154,34.92,145.56,145.53,6.8675]
[1750815373645,41.7869,145.56,145.53,6.8675]
[1750815374154,34.92,145.56,145.53,6.8675]
[1750815375344,41.7867,145.56,145.53,6.8675]
[1750815376343,34.92,145.56,145.54,6.8672]
[1750815376544,34.92,145.56,145.5,8.57936368]
[1750815377055,41.7865,145.56,145.54,6.867]
[1750815378546,34.92,145.56,145.55,6.8669]
[1750815379046,39.20779132,145.59,145.52,8.57936368]
[1750815379245,6.8657,145.58,145.52,8.57936368]
[1750815379647,6.8657,145.58,145.53,8.57936368]
[1750815381354,6.8657,145.58,145.55,6.8664]
[1750815381653,6.8657,145.58,145.53,8.57936368]
[1750815383156,41.7852,145.59,145.53,8.57936368]
[1750815383456,41.7852,145.59,145.56,6.8661]
[1750815384850,41.7852,145.59,145.57,6.8659]
[1750815386355,34.92,145.59,145.57,6.8659]
[1750815388055,41.785,145.59,145.57,6.8659]
[1750815388644,34.92,145.59,145.53,8.57936368]
[1750815388852,34.92,145.59,145.58,6.8655]
[1750815391253,34.92,145.62,145.54,8.57936368]
[1750815391459,34.92,145.62,145.54,13.23416368]
[1750815391850,6.8646,145.6,145.54,13.23416368]
[1750815393360,6.8646,145.6,145.58,6.8655]
[1750815394362,34.92,145.62,145.58,6.8655]
[1750815395065,6.8644,145.61,145.58,6.8655]
[1750815397874,6.8644,145.61,145.54,13.23416368]
[1750815398367,6.8644,145.61,145.58,6.8651]
[1750815399070,34.92,145.62,145.57,6.8657]
[1750815399469,34.92,145.62,145.52,48.6566]
[1750815399470,34.92,145.62,145.51,8.57936368]
[1750815399668,6.8662,145.57,145.54,6.8671]
[1750815401665,34.9,145.58,145.51,8.57936368]
[1750815401866,34.9,145.58,145.5,43.47936368]
[1750815402372,6.8672,145.55,145.52,6.8681]
[1750815403067,6.8672,145.55,145.53,6.8678]
[1750815403257,6.8667,145.56,145.53,6.8678]
[1750815404174,6.867,145.55,145.52,6.8681]
[1750815405172,6.8667,145.56,145.53,6.8678]
[1750815409970,6.8669,145.55,145.53,6.8678]
[1750815411279,6.8667,145.56,145.53,6.8678]
[1750815413877,6.8667,145.56,145.54,6.8673]
[1750815415375,34.9,145.58,145.55,6.8669]
[1750815416377,41.7658,145.58,145.55,6.8669]
[1750815417280,34.9,145.58,145.54,8.57936368]
[1750815417482,34.9,145.58,145.55,8.57936368]
[1750815417685,34.9,145.61,145.55,8.57936368]
[1750815419386,6.8654,145.59,145.56,6.8662]
[1750815420391,6.8648,145.6,145.55,8.57936368]
[1750815420982,6.8648,145.6,145.57,6.8657]
[1750815421998,6.865,145.59,145.57,6.8657]
[1750815422285,34.9,145.61,145.55,8.57936368]
[1750815422482,4.30899646,145.62,145.58,8.57936368]
[1750815422685,4.31045058,145.63,145.58,8.57936368]
[1750815422882,34.9,145.64,145.62,6.8636]
[1750815423481,34.9,145.64,145.6,8.57936368]
[1750815423687,34.9,145.64,145.61,8.57936368]
[1750815424085,34.9,145.64,145.62,6.8633]
[1750815425395,41.7628,145.64,145.61,6.8638]
[1750815425592,34.9,145.64,145.6,8.57936368]
[1750815425901,4.30555839,145.63,145.57,8.57936368]
[1750815426083,4.30555839,145.62,145.54,8.57936368]
[1750815426393,4.30555839,145.61,145.54,8.57936368]
[1750815426580,6.8662,145.57,145.54,15.44666368]
[1750815426781,6.8662,145.57,145.54,8.57936368]
[1750815427002,6.8662,145.57,145.53,8.57936368]
[1750815427298,6.8662,145.57,145.54,6.867]
[1750815428595,6.8657,145.58,145.54,15.44636368]
[1750815428794,6.8657,145.58,145.55,6.8668]
[1750815429408,6.8653,145.59,145.55,15.44616368]
[1750815429699,6.8653,145.59,145.56,6.8663]
[1750815430400,41.7248,145.6,145.57,6.8659]
[1750815430893,41.7248,145.6,145.55,8.57936368]
[1750815430894,34.86,145.6,145.55,8.57936368]
[1750815431299,6.8652,145.59,145.56,6.8662]
[1750815432700,41.7248,145.6,145.57,6.866]
[1750815433286,6.8651,145.59,145.56,6.8663]
[1750815433491,34.86,145.6,145.56,6.8663]
[1750815434501,6.8653,145.59,145.56,6.8663]
[1750815435403,4.30283314,145.62,145.56,8.57936368]
[1750815435697,4.30435696,145.62,145.56,8.57936368]
[1750815436402,4.30379921,145.61,145.55,8.57936368]
[1750815436603,4.30379921,145.62,145.54,8.57936368]
[1750815436904,6.8656,145.58,145.55,6.8666]
[1750815439401,34.86,145.59,145.54,8.57936368]
[1750815439701,39.16372156,145.62,145.55,10.78116368]
[1750815439892,4.30372156,145.65,145.56,8.57936368]
[1750815440097,34.86,145.65,145.58,8.57936368]
[1750815440504,39.16616597,145.65,145.58,8.57936368]
[1750815440698,34.86,145.65,145.58,8.57936368]
[1750815441300,39.16616927,145.65,145.58,8.57936368]
[1750815441494,34.86,145.65,145.58,8.57936368]
[1750815441703,39.16616927,145.65,145.58,8.57936368]
[1750815442020,6.8629,145.64,145.61,6.8639]
[1750815443611,6.8632,145.63,145.6,6.8643]
[1750815445113,34.86,145.65,145.56,8.57936368]
[1750815445303,39.16996859,145.65,145.57,8.57936368]
[1750815445504,6.8634,145.63,145.6,6.8645]
[1750815447711,6.8628,145.64,145.6,6.8645]
[1750815449115,46.03236859,145.65,145.61,6.8639]
[1750815449412,41.7224,145.65,145.61,6.8639]
[1750815449613,34.86,145.65,145.62,6.8636]
[1750815449913,34.86,145.65,145.58,10.94296368]
[1750815450205,34.86,145.65,145.62,6.8631]
[1750815451110,41.7222,145.65,145.62,6.8631]
[1750815451510,34.86,145.65,145.63,6.8629]
[1750815453823,34.86,145.65,145.64,6.8627]
[1750815454113,34.86,145.65,145.59,8.57936368]
[1750815454414,34.86,145.65,145.63,6.8629]
[1750815454904,6.8629,145.64,145.59,8.57936368]
[1750815455105,34.86,145.65,145.59,8.57936368]
[1750815455312,34.86,145.65,145.58,10.94296368]
[1750815455814,6.8634,145.63,145.6,6.8645]
[1750815461418,3.39407421,145.62,145.58,8.57936368]
[1750815461615,3.39407421,145.62,145.57,8.57936368]
[1750815461818,6.8641,145.61,145.58,15.44456368]
[1750815462410,6.8641,145.61,145.58,6.8652]
[1750815462708,6.8641,145.61,145.57,8.57936368]
[1750815462709,6.864,145.62,145.57,8.57936368]
[1750815462905,4.34134005,145.64,145.57,8.57936368]
[1750815463109,4.34161867,145.64,145.58,8.57936368]
[1750815463308,4.86506538,145.63,145.58,8.57936368]
[1750815463514,6.8635,145.63,145.6,6.8643]
[1750815464017,38.2548882,145.65,145.58,8.57936368]
[1750815464320,11.72767459,145.64,145.61,6.8638]
[1750815464519,4.86477459,145.63,145.61,6.8638]
[1750815464824,6.8632,145.63,145.61,6.8638]
[1750815465129,38.2548882,145.65,145.61,6.8638]
[1750815465313,4.86153659,145.64,145.61,6.8638]
[1750815465509,38.2548882,145.65,145.62,6.8633]
[1750815466422,45.1173882,145.65,145.62,6.8633]
[1750815467221,34.86,145.65,145.6,8.57936368]
[1750815467522,34.82,145.68,145.62,8.57936368]
[1750815467823,11.72514988,145.67,145.64,6.8622]
[1750815468024,6.8615,145.67,145.64,6.8622]
[1750815468526,6.8615,145.67,145.65,6.8621]
[1750815469024,39.16242885,145.68,145.62,8.57936368]
[1750815469025,46.02342885,145.68,145.66,6.8617]
[1750815469324,4.86428846,145.67,145.66,6.8617]
[1750815469729,34.82,145.68,145.66,6.8617]
[1750815470415,6.9162,145.74,145.65,3.39087432]
[1750815470621,34.82,145.72,145.65,11.970238]
[1750815470927,6.8601,145.7,145.67,6.8609]
[1750815471624,6.8606,145.69,145.65,8.57936368]
[1750815472125,6.8606,145.69,145.66,6.8617]
[1750815474429,6.8606,145.69,145.65,6.8621]
[1750815475621,6.8613,145.67,145.64,8.57936368]
[1750815475930,3.39087432,145.67,145.61,13.15886368]
[1750815476525,6.8622,145.66,145.62,6.8633]
[1750815477028,6.8623,145.65,145.62,6.8633]
[1750815480436,3.39087432,145.67,145.62,8.57936368]
[1750815480728,34.82,145.68,145.62,8.57936368]
[1750815480932,41.6811,145.68,145.65,6.8619]
[1750815481624,6.8614,145.67,145.65,6.8619]
[1750815482132,34.82,145.68,145.65,6.8619]
[1750815482337,41.6811,145.68,145.65,6.8619]
[1750815485236,41.6811,145.68,145.66,6.8617]
[1750815485632,34.82,145.68,145.63,8.57936368]
[1750815485935,8.25954749,145.67,145.61,8.57936368]
[1750815486137,6.8613,145.67,145.61,8.57936368]
[1750815486331,34.82,145.68,145.62,8.57936368]
[1750815486840,41.681,145.68,145.65,6.8619]
[1750815488631,5.79449725,145.74,145.66,3.38949725]
[1750815488823,34.8,145.74,145.67,8.57936368]
[1750815489027,39.13773482,145.74,145.66,11.96886093]
[1750815489227,3.38949725,145.73,145.66,11.96886093]
[1750815489528,3.38949725,145.73,145.67,8.57936368]
[1750815490034,34.8,145.74,145.68,3.38949725]
[1750815490236,34.8,145.74,145.68,11.96886093]
[1750815490536,34.8,145.74,145.71,6.8589]
[1750815490732,34.8,145.74,145.68,11.96886093]
[1750815491031,34.8,145.74,145.68,11.968164]
[1750815491533,34.8,145.74,145.72,6.8588]
[1750815492638,34.8,145.74,145.71,6.8591]
[1750815493538,41.658,145.74,145.71,6.8591]
[1750815493740,34.8,145.74,145.71,6.8591]
[1750815495042,41.658,145.74,145.71,6.8591]
[1750815495946,6.8584,145.73,145.7,6.8597]
[1750815496440,34.8,145.74,145.68,3.38880032]
[1750815496646,34.8,145.74,145.71,6.8589]
[1750815497154,34.8,145.74,145.72,6.8586]
[1750815498337,34.8,145.74,145.71,6.8591]
[1750815498538,34.8,145.74,145.69,3.38880032]
[1750815499547,34.8,145.74,145.73,6.8584]
[1750815499938,3.38880032,145.77,145.71,3.38880032]
[1750815499939,41.6569,145.77,145.71,3.38880032]
[1750815500141,34.8,145.77,145.76,6.857]
[1750815500546,20.5563,145.87,145.73,3.38880032]
[1750815500547,592.82,145.8,145.73,3.38880032]
[1750815500746,627.62,145.8,145.73,3.38880032]
[1750815500943,634.4754,145.8,145.73,3.38880032]
[1750815501140,34.8,145.8,145.73,3.38880032]
[1750815501339,34.8,145.8,145.75,3.38880032]
[1750815501644,6.8544,145.82,145.75,3.38880032]
[1750815501942,10.14740032,145.85,145.77,3.38880032]
[1750815502149,34.8,145.85,145.82,6.8539]
[1750815502344,34.8,145.88,145.81,3.38880032]
[1750815502548,3.38880032,145.89,145.81,3.38880032]
[1750815502745,3.38880032,145.87,145.79,3.38880032]
[1750815502953,34.8,145.86,145.79,3.38880032]
[1750815503348,34.8,145.86,145.81,3.38880032]
[1750815503743,6.8542,145.82,145.79,6.8555]
[1750815504146,38.18880032,145.86,145.78,6.897]
[1750815504147,38.18880032,145.86,145.78,10.28580032]
[1750815504348,6.8536,145.84,145.8,6.8548]
[1750815504548,6.8536,145.84,145.78,10.28580032]
[1750815504744,38.18880032,145.86,145.78,10.28580032]
[1750815505148,6.8537,145.84,145.8,6.8549]
[1750815506050,38.18880032,145.86,145.79,6.8554]
[1750815506459,34.8,145.86,145.78,10.28580032]
[1750815506647,34.8,145.86,145.8,3.38880032]
[1750815507053,34.8,145.86,145.83,6.8537]
[1750815507649,34.8,145.86,145.84,6.8532]
[1750815508046,34.8,145.86,145.82,3.38880032]
[1750815508454,34.78,145.89,145.84,3.38880032]
[1750815508756,34.78,145.89,145.86,3.38880032]
[1750815509161,6.8503,145.91,145.88,6.8511]
[1750815509553,6.8505,145.9,145.86,3.38880032]
[1750815509756,34.78,145.92,145.86,3.38880032]
[1750815510157,41.6296,145.92,145.86,3.38880032]
[1750815510461,34.78,145.92,145.86,3.38880032]
[1750815511252,6.8513,145.89,145.85,6.8527]
[1750815511452,34.78,145.92,145.84,3.38880032]
[1750815511660,34.78,145.92,145.86,3.38880032]
[1750815511861,34.78,145.92,145.89,6.8506]
[1750815512358,41.6295,145.92,145.89,6.8506]
[1750815512660,34.78,145.92,145.88,6.8512]
[1750815513057,41.6297,145.92,145.88,6.8512]
[1750815515364,627.4,145.94,145.88,3.38880032]
[1750815515563,34.76,145.94,145.88,3.38880032]
[1750815515764,41.6088,145.94,145.9,6.8501]
[1750815516666,6.8493,145.93,145.89,6.8508]
[1750815516866,6.8493,145.93,145.88,3.38880032]
[1750815517564,6.8493,145.93,145.9,6.8503]
[1750815517762,6.8493,145.93,145.88,3.38880032]
[1750815518368,6.8497,145.92,145.89,6.8508]
[1750815518969,38.14880032,145.94,145.86,10.30330032]
[1750815519667,6.8498,145.92,145.88,6.8514]
[1750815520272,6.85,145.91,145.88,6.8514]
[1750815520466,6.85,145.91,145.86,10.30330032]
[1750815520467,38.14880032,145.94,145.86,10.30330032]
[1750815520669,41.6089,145.94,145.88,3.38880032]
[1750815520973,41.6089,145.94,145.9,6.85]
[1750815521469,34.76,145.94,145.9,3.38880032]
[1750815522255,34.76,145.94,145.88,3.38880032]
[1750815522964,6.8491,145.93,145.9,6.85]
[1750815523870,6.8491,145.93,145.91,6.8499]
[1750815524076,6.8491,145.93,145.86,6.9145]
[1750815524077,6.8495,145.92,145.86,6.9145]
[1750815524267,6.8495,145.92,145.88,3.38880032]
[1750815524574,6.8495,145.92,145.89,6.8507]
[1750815525565,6.8493,145.93,145.9,6.8504]
[1750815525970,41.6088,145.94,145.9,6.8504]
[1750815526270,41.6088,145.94,145.91,6.8499]
[1750815526667,41.6088,145.94,145.88,3.38880032]
[1750815526668,41.6088,145.94,145.9,6.8502]
[1750815529677,6.849,145.93,145.9,6.8502]
[1750815529973,34.76,145.94,145.86,6.9145]
[1750815530277,38.14880032,145.94,145.86,7.93220032]
[1750815530575,6.8502,145.91,145.88,6.8512]
[1750815531166,6.8504,145.9,145.87,6.8516]
[1750815531769,6.8502,145.91,145.88,6.8514]
[1750815536173,6.8505,145.9,145.87,6.8516]
[1750815536373,6.8505,145.9,145.86,3.38880032]
[1750815536569,3.38880032,145.92,145.84,38.64880032]
[1750815536783,12.90217945,145.92,145.84,38.64880032]
[1750815537172,6.8512,145.89,145.86,6.852]
[1750815537580,4.93021417,145.91,145.84,38.64880032]
[1750815537882,6.8508,145.9,145.86,6.8523]
[1750815538074,6.8508,145.9,145.84,38.64880032]
[1750815538277,6.8508,145.9,145.86,6.8519]
[1750815538577,6.8508,145.9,145.84,38.64880032]
[1750815538778,6.8508,145.9,145.87,6.8516]
[1750815538973,6.8503,145.91,145.84,38.64880032]
[1750815539170,12.89319373,145.92,145.84,35.26]
[1750815539375,7.97740032,145.92,145.84,38.64880032]
[1750815539576,4.5886,145.92,145.84,38.64880032]
[1750815539975,4.5886,145.92,145.88,6.8511]
[1750815540176,6.8502,145.91,145.88,6.8511]
[1750815540773,3.38880032,145.91,145.84,35.26]
[1750815540975,35.26,145.9,145.84,35.26]
[1750815541281,35.26,145.9,145.85,3.38880032]
[1750815541470,41.06820032,145.93,145.85,3.38880032]
[1750815541674,4.92014221,145.92,145.85,3.38880032]
[1750815541875,6.8497,145.92,145.89,6.8507]
[1750815543580,35.26,145.93,145.85,3.38880032]
[1750815543778,35.26,145.93,145.87,3.38880032]
[1750815544081,4.92775275,145.92,145.86,3.38880032]
[1750815544284,11.77795275,145.91,145.88,6.8511]
[1750815544483,38.64880032,145.93,145.86,3.38880032]
[1750815544681,9.37555693,145.92,145.86,3.38880032]
[1750815544978,4.9391367,145.91,145.88,6.851]
[1750815545176,4.9391367,145.9,145.88,6.851]
[1750815545372,6.8499,145.92,145.88,6.851]
[1750815545585,9.37967133,145.91,145.88,6.851]
[1750815545777,4.94265609,145.9,145.88,6.851]
[1750815545977,38.64880032,145.93,145.89,6.8508]
[1750815546178,16.23022082,145.92,145.89,6.8508]
[1750815546381,9.38052082,145.91,145.89,6.8508]
[1750815546579,4.94350472,145.9,145.89,6.8508]
[1750815547789,35.26,145.93,145.91,6.8499]
[1750815547999,9.39992336,145.92,145.91,6.8499]
[1750815548201,4.95606594,145.92,145.91,6.8499]
[1750815549793,45.53660032,145.96,145.94,6.8485]
[1750815550100,9.40789877,145.95,145.94,6.8485]
[1750815550498,9.41192393,145.95,145.94,6.8485]
[1750815550998,9.41192393,145.95,145.91,3.38880032]
[1750815551202,4.95275106,145.94,145.91,3.38880032]
[1750815551404,38.68880032,145.98,145.94,6.8483]
[1750815551604,9.415807,145.97,145.91,3.38880032]
[1750815551804,9.415807,145.96,145.91,3.38880032]
[1750815552101,4.95662438,145.95,145.91,3.38880032]
[1750815552296,6.8472,145.97,145.91,3.38880032]
[1750815552494,9.42466094,145.96,145.91,3.38880032]
[1750815552801,42.147,145.98,145.95,6.8481]
[1750815553001,9.42249345,145.97,145.95,6.8481]
[1750815553197,9.42294811,145.96,145.95,6.8481]
[1750815553403,4.9602138,145.96,145.95,6.8481]
[1750815554307,42.1469,145.98,145.95,6.8481]
[1750815554498,16.20404889,145.97,145.94,6.8484]
[1750815554699,35.3,145.98,145.91,3.38880032]
[1750815554894,9.35670614,145.97,145.91,3.38880032]
[1750815555100,35.3,145.98,145.91,3.38880032]
[1750815555300,9.35673987,145.97,145.91,3.38880032]
[1750815555499,42.1468,145.98,145.91,3.38880032]
[1750815555709,9.35673248,145.97,145.92,35.28]
[1750815556009,35.3,145.98,145.96,6.8475]
[1750815556304,9.35669515,145.97,145.96,6.8475]
[1750815556508,9.35669515,145.97,145.95,6.8479]
[1750815556707,42.1467,145.98,145.95,6.8479]
[1750815556907,9.35478318,145.97,145.95,6.8479]
[1750815557104,6.8472,145.97,145.94,6.8483]
[1750815558209,6.8477,145.96,145.93,6.8488]
[1750815558409,3.38880032,145.97,145.92,35.28]
[1750815558611,10.23620032,145.97,145.94,6.8483]
[1750815559411,42.1469,145.98,145.95,6.848]
[1750815559605,35.3,145.98,145.92,35.28]
[1750815561097,42.1471,145.98,145.94,6.8482]
[1750815561301,35.3,145.98,145.94,6.8482]
[1750815561906,6.8475,145.97,145.94,6.8482]
[1750815563606,6.8476,145.96,145.93,6.8488]
[1750815564610,39.77226168,145.98,145.94,6.8485]
[1750815565009,6.8477,145.96,145.93,6.8489]
[1750815566412,3.38880032,145.97,145.9,2.2378]
[1750815566607,3.38880032,145.95,145.88,3.38880032]
[1750815566812,9.12870677,145.97,145.88,3.38880032]
[1750815567014,6.8488,145.94,145.88,3.38880032]
[1750815567712,6.8483,145.95,145.92,6.8495]
[1750815568012,6.8483,145.95,145.9,3.38880032]
[1750815568513,6.8483,145.95,145.92,6.8492]
[1750815569011,6.8487,145.94,145.91,6.8498]
[1750815569611,7.8569086,145.95,145.89,3.38880032]
[1750815569914,35.28,145.94,145.87,38.66880032]
[1750815571501,42.1288,145.94,145.87,38.66880032]